bitfinex-derivatives/quotes_ETHF0:USTF0_20220106
["timestamp","ask_amount","ask_price","bid_price","bid_amount"]
[1641460346003,0.77191865,3393.3,3392.7,1.43631496]
[1641460346204,1.477,3394.2,3392.7,1.43631496]
[1641460346599,1.477,3394.2,3393.0,0.7333]
[1641460346999,1.65819178,3393.4,3393.0,0.7333]
[1641460348001,1.32654844,3393.1,3393.0,0.7333]
[1641460348201,1.32654844,3393.1,3393.0,0.963291]
[1641460350002,1.32654844,3393.4,3393.0,0.963291]
[1641460351603,1.32654844,3393.4,3393.0,0.7333]
[1641460352202,0.132394,3393.5,3393.0,0.7333]
[1641460352404,1.65819178,3393.3,3393.0,0.7333]
[1641460354208,1.32647653,3393.1,3393.0,0.7333]
[1641460354406,2.80032891,3393.1,3391.7,1.66112468]
[1641460354604,12.56,3393.0,3391.7,1.66112468]
[1641460354803,13.169,3393.0,3391.7,1.66112468]
[1641460355306,13.169,3393.0,3391.7,0.86694213]
[1641460356306,1.32679241,3392.3,3391.7,0.86694213]
[1641460356705,1.32679241,3392.3,3391.7,2.34047092]
[1641460356905,1.32679241,3392.3,3391.7,0.86694213]
[1641460357106,1.32679241,3392.3,3391.8,1.47349405]
[1641460357504,1.65849052,3392.5,3391.8,1.47349405]
[1641460357905,32.509,3393.4,3391.7,0.86694213]
[1641460357906,1.32674277,3392.4,3392.3,1.47326828]
[1641460358110,1.32674277,3392.4,3392.3,0.861791]
[1641460358606,1.65849052,3392.7,3392.3,0.861791]
[1641460358808,1.65849052,3392.4,3392.3,0.6318]
[1641460359005,1.65849052,3392.4,3392.2,0.81127633]
[1641460359206,1.65849052,3392.4,3391.9,1.66112468]
[1641460360208,1.79088452,3392.4,3391.9,1.66112468]
[1641460360406,0.132394,3392.4,3391.9,1.66112468]
[1641460360609,1.99751937,3392.3,3391.7,1.28076363]
[1641460360807,0.132394,3392.2,3391.7,1.28076363]
[1641460361408,1.99751937,3392.3,3391.7,2.75431414]
[1641460361706,1.99751937,3392.3,3392.0,0.99876753]
[1641460361907,1.99751937,3392.2,3392.1,0.229991]
[1641460362108,1.99751937,3392.2,3392.0,0.99876753]
[1641460362708,1.99751937,3392.2,3392.1,0.229991]
[1641460363007,1.99751937,3392.2,3392.1,1.103391]
[1641460363208,1.99751937,3392.2,3392.1,0.8734]
[1641460363608,1.99751937,3392.2,3392.1,1.103391]
[1641460364711,2.10155226,3392.3,3392.1,2.72635587]
[1641460365914,2.10155226,3392.3,3392.1,2.10215853]
[1641460366111,2.10155226,3392.3,3392.1,1.103391]
[1641460366812,1.99751937,3392.3,3392.1,1.103391]
[1641460367316,1.99751937,3392.3,3392.1,0.8734]
[1641460367514,1.99751937,3392.3,3392.1,1.103391]
[1641460367715,36.3922,3393.1,3392.1,1.103391]
[1641460367916,2.977,3393.1,3392.1,1.103391]
[1641460368315,1.5,3393.1,3392.1,1.103391]
[1641460369319,1.477,3393.4,3392.1,1.103391]
[1641460369919,1.5,3393.1,3392.1,1.103391]
[1641460370118,1.477,3393.4,3392.1,1.103391]
[1641460370319,1.5,3393.1,3392.1,1.103391]
[1641460372829,1.477,3393.4,3392.1,1.103391]
[1641460373031,1.5,3393.1,3392.1,1.103391]
[1641460374431,2.95062433,3393.5,3393.1,2.7667]
[1641460374632,0.132394,3393.4,3393.1,0.0001]
[1641460375034,0.132394,3393.4,3392.1,1.5]
[1641460375331,1.47385456,3392.9,3391.0,1.47385456]
[1641460375531,6.192938,3393.3,3391.6,1.47358308]
[1641460375731,18.752938,3393.3,3391.8,1.5]
[1641460375932,14.037,3393.3,3391.8,1.5]
[1641460376132,4.716216,3393.2,3391.8,1.5]
[1641460376333,4.716216,3393.2,3392.0,1.5]
[1641460376533,1.477,3393.3,3392.0,1.5]
[1641460376734,1.477,3393.3,3391.7,1.47354182]
[1641460376934,12.56,3393.2,3391.7,1.47354182]
[1641460377134,2.0386,3393.3,3392.1,1.5]
[1641460377334,4.716285,3393.2,3392.1,1.5]
[1641460377535,4.716285,3393.2,3391.7,1.47354182]
[1641460377734,4.716285,3393.2,3391.7,2.97354182]
[1641460378334,4.716285,3393.2,3393.1,1.5]
[1641460378634,4.848679,3393.2,3393.1,1.5]
[1641460378834,4.848679,3393.2,3392.4,1.47324875]
[1641460379635,4.848679,3393.2,3392.3,1.5]
[1641460380236,0.132394,3393.2,3392.3,1.5]
[1641460380437,0.132394,3393.2,3392.0,1.5]
[1641460381845,0.132394,3393.2,3391.8,2.97351359]
[1641460382042,9.99999999,3392.9,3391.4,1.4066832]
[1641460382241,1.47428913,3391.9,3390.3,1.5]
[1641460382444,14.60828913,3391.9,3390.2,0.99876753]
[1641460383044,17.891202,3391.8,3390.3,0.99876753]
[1641460384043,4.718302,3391.8,3390.6,1.5]
[1641460384443,4.718302,3391.8,3390.1,1.47421959]
[1641460384744,4.718302,3391.8,3390.1,2.97421959]
[1641460385145,4.718302,3391.8,3389.9,0.8850256]
[1641460385344,30.9827,3392.1,3391.1,1.5]
[1641460385545,1.99751937,3394.4,3391.1,2.0389]
[1641460385745,33.6546,3393.0,3391.1,2.0389]
[1641460385946,1.3094887,3394.2,3391.1,2.0389]
[1641460386147,1.47387628,3392.9,3391.1,2.0389]
[1641460386546,1.47387628,3392.9,3391.1,0.5389]
[1641460386747,12.56,3393.1,3391.3,2.97373292]
[1641460386948,12.56,3392.7,3389.9,1.5]
[1641460387147,12.56,3392.7,3390.8,2.97395014]
[1641460387148,1.477,3392.6,3390.8,2.97395014]
[1641460388250,0.6129,3392.4,3390.8,2.97395014]
[1641460388449,1.477,3392.6,3390.8,2.97395014]
[1641460388652,1.99751937,3391.8,3391.5,0.99876753]
[1641460388853,1.99751937,3391.8,3391.6,0.229991]
[1641460389651,1.99751937,3391.7,3391.6,0.229991]
[1641460390051,1.99751937,3391.7,3391.6,1.729991]
[1641460390254,1.99751937,3391.7,3391.6,0.229991]
[1641460390452,1.99751937,3391.7,3391.4,2.49876753]
[1641460390653,1.99751937,3391.7,3391.6,0.229991]
[1641460390856,1.99751937,3391.7,3391.4,2.49876753]
[1641460391056,1.99751937,3391.8,3391.5,0.99876753]
[1641460391453,1.99751937,3391.8,3391.6,0.229991]
[1641460392055,1.99751937,3391.7,3391.6,0.229991]
[1641460392656,1.99751937,3391.7,3391.6,1.729991]
[1641460392864,1.937e-05,3391.7,3391.6,3.20353065]
[1641460393056,2.48691004,3392.0,3391.6,3.20353065]
[1641460393257,2.48691004,3392.0,3391.9,1.5]
[1641460393455,2.48691004,3392.0,3391.9,1.729991]
[1641460394158,3.41992709,3392.3,3391.9,3.20336782]
[1641460394556,3.31588006,3392.3,3391.9,1.70336782]
[1641460394762,2.49659007,3392.7,3391.9,3.01285652]
[1641460395758,3.31588006,3393.0,3392.0,1.40894735]
[1641460395957,3.31588006,3393.0,3392.5,0.99851452]
[1641460396558,3.31588006,3393.2,3392.5,0.99851452]
[1641460397360,0.132394,3393.1,3392.5,0.99851452]
[1641460397560,0.132394,3393.1,3392.4,1.08173857]
[1641460399365,3.31588006,3393.6,3392.4,1.08173857]
[1641460399964,0.9987527,3393.5,3392.4,1.08173857]
[1641460400364,0.9987527,3393.5,3392.8,1.5]
[1641460400565,0.132394,3393.4,3392.8,1.5]
[1641460401170,0.132394,3393.4,3392.5,1.5]
[1641460401570,0.132394,3393.4,3392.4,1.08173857]
[1641460401967,1.47381763,3393.0,3391.9,0.84641204]
[1641460402169,14.03381763,3393.0,3392.3,2.00479]
[1641460402368,1.13119672,3392.9,3392.3,2.00479]
[1641460402568,1.13119672,3392.9,3392.3,1.99779]
[1641460402769,1.47393711,3392.7,3392.3,1.99779]
[1641460403170,0.132394,3392.6,3392.3,1.99779]
[1641460403371,1.47393711,3392.7,3392.0,2.00479]
[1641460403569,0.852694,3392.6,3392.0,2.00479]
[1641460404171,0.852694,3392.6,3391.6,2.00479]
[1641460404370,0.852694,3392.6,3391.0,2.98797578]
[1641460404371,1.474137,3392.3,3391.0,2.98797578]
[1641460404570,1.47435652,3391.8,3391.0,2.98797578]
[1641460404769,12.692394,3391.7,3391.0,2.98797578]
[1641460404969,12.692394,3391.7,3390.0,8.55222927]
[1641460404970,14.16678747,3391.7,3390.0,1.5]
[1641460405169,14.16678747,3391.7,3389.9,1.46519949]
[1641460405370,0.6129,3391.6,3390.1,1.5]
[1641460405571,12.56,3391.5,3390.3,1.5]
[1641460406071,12.56,3391.5,3390.0,1.5]
[1641460406272,12.56,3391.5,3390.8,2.00479]
[1641460406569,0.132394,3391.4,3390.8,2.00479]
[1641460406773,1.4746522,3391.1,3389.3,1.5]
[1641460406970,12.56,3391.0,3389.2,2.6356203]
[1641460407171,1.47482402,3390.7,3390.0,1.5]
[1641460407371,0.132394,3390.6,3390.0,1.5]
[1641460407772,0.132394,3390.6,3389.2,1.1609681]
[1641460407974,0.132394,3390.6,3390.0,1.5]
[1641460408171,2.00479,3390.1,3390.0,1.5]
[1641460408678,0.8378,3391.1,3390.0,1.5]
[1641460408972,0.8378,3391.1,3389.7,1.5]
[1641460409373,0.8378,3391.1,3390.7,1.5]
[1641460409675,0.970194,3391.1,3390.7,2.1108]
[1641460409873,44.9925,3391.7,3390.7,0.6108]
[1641460410073,1.477,3391.8,3391.2,1.5]
[1641460410273,2.00479,3391.4,3391.3,0.132394]
[1641460410478,2.00479,3391.7,3391.3,0.362385]
[1641460410874,12.56,3392.6,3391.6,1.5]
[1641460411176,12.56,3392.6,3391.6,2.3722]
[1641460411575,1.65826626,3392.0,3391.6,2.3722]
[1641460411774,1.65826626,3392.0,3391.7,0.132394]
[1641460411974,1.65826626,3392.0,3391.8,0.229991]
[1641460413073,3.66305626,3392.3,3391.8,0.229991]
[1641460413673,3.66305626,3392.3,3391.9,1.5]
[1641460413874,3.66305626,3392.3,3392.2,1.5]
[1641460414076,3.66305626,3392.3,3392.2,1.729991]
[1641460414374,3.66305626,3392.3,3392.2,1.862385]
[1641460414575,2.79528174,3392.4,3392.2,1.862385]
[1641460415374,2.79528174,3392.4,3392.2,3.33593116]
[1641460415574,2.79528174,3392.4,3392.2,1.862385]
[1641460415776,4.49218938,3392.7,3392.2,1.862385]
[1641460415977,4.49218938,3392.7,3392.2,1.83593116]
[1641460416177,0.33364692,3392.3,3392.2,1.83593116]
[1641460416384,0.33364692,3392.3,3392.2,5.34072116]
[1641460416580,0.33364692,3392.3,3392.2,3.867175]
[1641460416778,4.692e-05,3392.3,3392.2,5.34055616]
[1641460417379,1.98949024,3392.9,3392.2,5.34055616]
[1641460417579,1.98949024,3392.9,3392.7,1.0]
[1641460417780,1.98949024,3392.9,3392.7,1.611]
[1641460418181,1.98949024,3392.9,3392.2,2.00479]
[1641460418381,2.00479,3392.7,3391.8,2.00479]
[1641460418782,2.00479,3392.7,3391.9,0.99495975]
[1641460419184,2.00479,3392.7,3392.0,0.132394]
[1641460419381,2.00479,3392.7,3392.2,1.5]
[1641460419583,2.00479,3392.7,3391.9,0.99495975]
[1641460419788,2.00479,3392.7,3391.8,3.47851423]
[1641460419789,2.00479,3392.7,3392.6,1.5]
[1641460419989,2.00479,3392.7,3392.1,2.97359393]
[1641460420190,2.00479,3392.7,3392.2,0.132394]
[1641460420794,2.48739938,3393.2,3392.6,3.68801007]
[1641460420993,2.48739938,3393.2,3393.1,0.71465496]
[1641460421194,2.48739938,3393.2,3393.1,1.70604596]
[1641460421593,2.48739938,3393.2,3393.1,1.83843996]
[1641460421796,2.48739938,3393.2,3393.1,0.7614]
[1641460421997,2.00479,3393.3,3393.1,0.7614]
[1641460422195,2.00479,3393.3,3392.6,1.47335511]
[1641460422396,2.00479,3393.3,3392.6,3.61053911]
[1641460422694,2.00479,3393.3,3393.2,0.71465496]
[1641460422894,2.00479,3393.3,3392.7,1.0]
[1641460423094,2.00479,3393.3,3393.2,0.71465496]
[1641460423293,2.00479,3393.3,3393.2,0.94464596]
[1641460423494,2.00479,3393.3,3393.2,0.71465496]
[1641460423697,2.00479,3393.3,3392.7,1.0]
[1641460423895,2.00479,3393.3,3392.8,0.132394]
[1641460424397,2.00479,3393.3,3393.2,0.71465496]
[1641460425396,2.00479,3393.3,3393.2,0.362385]
[1641460425796,2.00479,3393.3,3393.2,1.047985]
[1641460426197,2.00479,3393.3,3393.2,0.817994]
[1641460426497,12.56,3393.3,3392.7,1.0]
[1641460426698,13.3617,3393.3,3392.7,1.0]
[1641460426901,0.8017,3393.3,3392.7,1.0]
[1641460427097,0.8017,3393.3,3392.7,1.132394]
[1641460427697,2.00479,3393.7,3393.3,0.1983]
[1641460427898,4.5602322,3393.4,3393.3,0.1983]
[1641460428298,18.62207724,3393.4,3392.7,1.0]
[1641460428500,4.00958,3392.8,3392.7,1.0]
[1641460430396,2.00479,3392.8,3392.7,1.229991]
[1641460430599,2.00479,3392.8,3392.7,1.0]
[1641460431197,2.00479,3393.0,3392.7,1.0]
[1641460431398,2.00479,3393.0,3392.8,0.229991]
[1641460431599,2.00479,3393.0,3392.7,1.132394]
[1641460432397,2.00479,3393.0,3392.8,0.229991]
[1641460432598,2.00479,3393.0,3392.9,0.132394]
[1641460433402,0.4317,3395.7,3392.9,1.41605245]
[1641460433599,4.99277928,3394.0,3393.1,4.0]
[1641460433799,4.99277928,3394.0,3393.9,14.77465496]
[1641460433999,4.97827928,3394.0,3393.9,15.56794896]
[1641460434399,4.71149128,3394.0,3393.9,17.1341206]
[1641460434601,6.24097411,3395.1,3393.9,21.1437006]
[1641460434799,6.24097411,3395.1,3394.4,13.27465496]
[1641460435000,6.24097411,3395.1,3394.4,12.56]
[1641460435601,1.66320858,3394.7,3394.4,12.56]
[1641460435801,1.66320858,3394.7,3394.6,0.71465496]
[1641460436604,1.66320858,3394.7,3394.6,4.00958]
[1641460437206,1.66320858,3394.7,3394.6,4.72423496]
[1641460437404,1.9958503,3395.0,3394.6,4.72423496]
[1641460437604,2.27610858,3396.1,3394.6,4.00958]
[1641460437807,1.66320858,3396.1,3395.0,0.71465496]
[1641460438004,1.66320858,3396.1,3394.6,4.70038]
[1641460438204,4.712049,3396.0,3395.4,1.47239192]
[1641460438405,4.844443,3396.0,3395.8,0.71465496]
[1641460438805,5.10113848,3396.0,3395.8,0.71465496]
[1641460439206,4.96874448,3396.0,3395.8,0.71465496]
[1641460439607,4.96874448,3396.0,3395.6,1.47230087]
[1641460439809,0.91773904,3395.9,3395.6,1.47230087]
[1641460440009,0.132394,3395.9,3395.1,1.47249815]
[1641460440210,4.711772,3395.8,3394.6,2.00479]
[1641460440411,4.711772,3395.8,3395.3,0.71465496]
[1641460440708,2.00479,3396.2,3394.6,4.00958]
[1641460440709,2.137184,3395.7,3394.6,4.00958]
[1641460440910,0.78534504,3395.3,3394.8,1.47262175]
[1641460441108,0.132394,3395.2,3394.8,1.47262175]
[1641460441311,0.132394,3395.2,3394.6,4.00958]
[1641460441609,0.132394,3395.2,3395.1,0.71465496]
[1641460443211,2.00479,3395.7,3395.1,0.94464596]
[1641460443413,0.132394,3395.6,3395.1,0.94464596]
[1641460443612,0.132394,3395.6,3395.1,0.71465496]
[1641460443813,4.712327,3395.5,3395.1,0.71465496]
[1641460444313,0.132394,3395.4,3395.1,0.71465496]
[1641460444713,4.712465,3395.3,3395.1,0.71465496]
[1641460445114,4.712465,3395.3,3395.2,0.229991]
[1641460445314,4.712465,3395.3,3395.1,0.71465496]
[1641460446216,4.712465,3395.3,3395.2,0.229991]
[1641460446416,4.712465,3395.3,3395.1,0.71465496]
[1641460446716,4.712465,3395.3,3395.2,2.00479]
[1641460447116,4.712465,3395.3,3395.2,2.234781]
[1641460447316,4.712465,3395.3,3395.2,2.00479]
[1641460448118,4.712465,3395.3,3395.2,2.234781]
[1641460448319,4.712465,3395.3,3395.2,2.00479]
[1641460449323,13.1729,3396.6,3395.2,2.234781]
[1641460449920,4.711563,3396.5,3395.2,2.234781]
[1641460450320,0.78534504,3395.3,3395.2,2.00479]
[1641460450722,0.78534504,3395.4,3395.2,2.00479]
[1641460451323,4.712396,3395.3,3395.2,2.00479]
[1641460451621,0.132394,3395.5,3395.2,2.00479]
[1641460452223,2.79013504,3396.2,3395.4,0.71465496]
[1641460452426,0.132394,3396.1,3395.4,0.71465496]
[1641460454228,0.132394,3396.1,3395.3,1.47240709]
[1641460454728,2.00479,3396.8,3395.6,2.00479]
[1641460455331,4.711217,3396.6,3395.6,2.00479]
[1641460455532,0.78534504,3396.4,3395.8,0.71465496]
[1641460456231,0.91773904,3396.4,3395.8,0.71465496]
[1641460456430,0.132394,3396.4,3395.8,0.71465496]
[1641460456632,2.00479,3396.8,3395.8,0.71465496]
[1641460457034,3.29366496,3396.3,3395.8,0.71465496]
[1641460457233,3.29366496,3396.3,3395.6,2.71944496]
[1641460457636,3.29366496,3396.3,3395.6,2.00479]
[1641460458334,3.29366496,3396.4,3395.6,3.70751444]
[1641460458535,0.78534504,3395.9,3395.6,3.70751444]
[1641460458735,0.78534504,3395.9,3395.7,0.229991]
[1641460459936,0.78534504,3395.9,3395.6,3.70751444]
[1641460460638,0.78534504,3395.9,3395.7,2.00479]
[1641460460836,3.29366496,3396.4,3395.7,2.00479]
[1641460461042,0.78534504,3395.9,3395.8,0.229991]
[1641460461441,3.29366496,3396.4,3395.8,0.229991]
[1641460462341,3.29366496,3396.4,3395.7,2.00479]
[1641460464345,3.29366496,3396.4,3396.1,1.47205596]
[1641460464946,3.29366496,3396.4,3395.9,3.0]
[1641460464947,2.42057044,3396.8,3395.9,3.0]
[1641460465145,0.78534504,3396.7,3395.9,3.0]
[1641460465347,0.132394,3396.6,3395.9,3.0]
[1641460465547,0.78534504,3396.0,3395.9,3.0]
[1641460465745,0.78534504,3396.0,3395.7,2.00479]
[1641460465947,1.78332455,3396.7,3395.7,2.00479]
[1641460466147,0.78534504,3396.7,3395.7,2.00479]
[1641460466347,0.99805573,3396.6,3395.7,2.00479]
[1641460466550,5.70920273,3396.6,3395.7,2.00479]
[1641460466949,0.99805573,3396.5,3395.7,2.00479]
[1641460467149,0.132394,3396.4,3395.7,2.00479]
[1641460467348,4.84368,3396.4,3395.7,2.00479]
[1641460468650,4.711286,3396.4,3395.7,2.00479]
[1641460468849,4.711286,3396.4,3395.9,0.71465496]
[1641460469450,0.78534504,3396.0,3395.7,2.00479]
[1641460469650,0.78534504,3396.2,3395.8,0.229991]
[1641460469853,0.78534504,3395.9,3395.7,2.00479]
[1641460470149,0.78534504,3396.6,3395.7,2.00479]
[1641460470651,0.998031,3396.5,3396.1,2.00479]
[1641460470851,5.709248,3396.5,3396.1,2.00479]
[1641460471251,0.998031,3396.4,3396.1,2.00479]
[1641460471850,0.78534504,3396.2,3396.1,2.00479]
[1641460472652,3.29366496,3396.7,3396.1,2.00479]
[1641460472853,0.99805097,3396.2,3396.1,2.00479]
[1641460473053,0.78534504,3396.3,3396.1,2.00479]
[1641460473255,0.99805097,3396.2,3396.1,2.00479]
[1641460474553,1.78339601,3396.2,3396.1,2.00479]
[1641460475153,0.99805097,3396.2,3396.1,2.234781]
[1641460475354,0.99805097,3396.2,3396.1,2.00479]
[1641460475553,1.78339601,3396.2,3396.1,2.00479]
[1641460476654,0.99805097,3396.2,3396.1,2.00479]
[1641460477859,10.99805096,3396.2,3395.7,2.00479]
[1641460478157,10.78534503,3395.8,3394.9,1.16742597]
[1641460478357,10.78534503,3395.8,3394.9,0.96012597]
[1641460478558,10.78534503,3395.8,3394.6,2.47832412]
[1641460478757,10.78534503,3395.8,3394.6,1.78955009]
[1641460478964,10.78534503,3395.8,3394.6,0.83154165]
[1641460479262,0.78534504,3394.7,3394.5,1.42309]
[1641460479459,0.91773904,3394.6,3394.5,1.42309]
[1641460480059,2.61769,3395.3,3394.5,1.653081]
[1641460480258,0.132394,3395.2,3394.5,0.839791]
[1641460480459,0.78534504,3395.0,3394.5,0.6098]
[1641460480659,0.78534504,3394.6,3394.5,0.6098]
[1641460480861,4.79492504,3394.6,3394.5,0.6098]
[1641460481063,4.79492504,3394.6,3394.5,0.839791]
[1641460481260,4.79492504,3394.6,3394.5,0.6098]
[1641460481462,4.79492504,3394.6,3394.2,0.71465496]
[1641460482463,0.132394,3394.5,3394.1,0.71465496]
[1641460482865,2.00479,3394.2,3394.1,0.71465496]
[1641460484269,2.00479,3394.2,3394.1,0.94464596]
[1641460485770,9e-05,3394.2,3394.1,0.94464596]
[1641460485970,2.00479,3394.6,3394.1,2.41758874]
[1641460486172,2.00479,3394.6,3394.5,0.71465496]
[1641460486571,2.00479,3394.6,3394.5,0.94464596]
[1641460487873,2.00479,3394.6,3394.1,2.18759774]
[1641460488171,0.6354,3394.6,3394.1,2.18759774]
[1641460488774,0.132394,3394.5,3394.1,2.18759774]
[1641460489272,0.6354,3394.6,3394.1,2.18759774]
[1641460489475,2.137184,3394.7,3394.1,1.47294278]
[1641460490374,2.137184,3394.7,3393.9,2.00479]
[1641460490576,2.137184,3394.7,3394.6,0.71465496]
[1641460492775,3.13558034,3394.7,3394.6,0.71465496]
[1641460493175,3.13558034,3394.7,3394.1,1.4729341]
[1641460493375,3.13558034,3394.7,3394.6,0.71465496]
[1641460494377,3.13558034,3394.7,3394.1,1.4729341]
[1641460494878,0.78534504,3394.3,3393.0,1.32455059]
[1641460495079,0.78534504,3393.5,3393.0,1.32455059]
[1641460495278,0.8412,3393.5,3393.3,0.71465496]
[1641460495477,0.8412,3393.5,3393.4,1.70317464]
[1641460495879,0.8412,3393.5,3393.4,0.229991]
[1641460496279,30.3677,3394.3,3393.4,0.229991]
[1641460496485,30.3677,3394.3,3393.7,0.71465496]
[1641460496781,0.132394,3394.2,3393.7,0.71465496]
[1641460496980,2.00479,3394.0,3393.7,0.71465496]
[1641460497180,0.132394,3393.9,3393.7,0.71465496]
[1641460497782,0.132394,3393.9,3393.7,0.229991]
[1641460498381,0.132394,3393.9,3393.7,0.94464596]
[1641460498581,0.132394,3393.9,3393.4,2.1878972]
[1641460498782,0.132394,3393.9,3393.4,0.71465496]
[1641460498981,0.132394,3393.9,3393.3,2.00479]
[1641460499382,0.91773904,3393.9,3393.3,2.00479]
[1641460500281,0.132394,3393.9,3393.3,2.00479]
[1641460500482,0.132394,3393.9,3393.8,0.71465496]
[1641460501083,2.00479,3394.0,3393.8,0.71465496]
[1641460501384,2.00479,3394.7,3393.9,1.70299887]
[1641460501584,0.132394,3394.6,3393.9,1.70299887]
[1641460501788,0.132394,3394.6,3394.5,0.71465496]
[1641460501984,2.137184,3394.7,3394.5,1.38415496]
[1641460502392,2.137184,3394.7,3394.6,0.94464596]
[1641460503090,4.141974,3394.7,3394.6,0.94464596]
[1641460503594,4.141974,3394.7,3394.5,1.38415496]
[1641460503793,4.141974,3394.7,3394.6,0.229991]
[1641460504295,4.141974,3394.7,3394.5,0.6695]
[1641460504296,4.141974,3394.7,3394.5,0.71465496]
[1641460504492,5.14043612,3394.7,3393.3,4.00958]
[1641460504694,0.99846212,3394.6,3393.9,1.47302523]
[1641460504895,4.141974,3394.7,3394.5,0.71465496]
[1641460505094,4.141974,3394.7,3394.6,0.229991]
[1641460505293,4.141974,3394.7,3394.6,0.71465496]
[1641460505495,4.00958,3394.7,3394.6,0.71465496]
[1641460505694,4.00958,3394.7,3394.6,1.27065496]
[1641460505895,2.61218,3394.7,3394.6,2.97329374]
[1641460506095,0.20796925,3395.1,3394.6,2.97329374]
[1641460506295,0.20796925,3395.7,3395.0,0.71465496]
[1641460506495,0.20796925,3395.7,3395.6,0.71465496]
[1641460506695,0.20796925,3395.7,3395.6,1.48785496]
[1641460506898,0.20796925,3395.7,3395.6,1.71784596]
[1641460507098,2.21275925,3395.7,3395.6,1.71784596]
[1641460507899,2.00479,3395.7,3395.6,1.71784596]
[1641460508699,2.00479,3395.7,3395.6,1.003191]
[1641460508901,2.00479,3395.7,3394.9,2.00479]
[1641460508902,2.137184,3395.7,3394.9,2.00479]
[1641460509101,6.849094,3395.7,3395.1,0.71465496]
[1641460509301,6.849094,3395.7,3394.9,2.00479]
[1641460509503,6.849094,3395.7,3395.2,0.71465496]
[1641460509701,6.849094,3395.7,3394.9,2.00479]
[1641460509702,6.849094,3395.7,3395.0,0.71465496]
[1641460509903,6.849094,3395.7,3394.9,2.00479]
[1641460510103,6.849094,3395.7,3395.0,1.5]
[1641460510304,6.849094,3395.7,3395.6,0.71465496]
[1641460510705,6.849094,3395.7,3395.3,1.47243528]
[1641460510706,6.849094,3395.7,3395.4,0.71465496]
[1641460511104,6.849094,3395.7,3395.5,0.229991]
[1641460511304,6.849094,3395.7,3394.9,2.63799]
[1641460511505,6.849094,3395.7,3395.6,0.71465496]
[1641460513009,6.849094,3395.7,3395.6,0.94464596]
[1641460513208,6.849094,3395.7,3395.6,1.47994596]
[1641460513608,2.137184,3395.7,3395.6,0.765291]
[1641460513908,2.00479,3395.7,3395.6,1.47994596]
[1641460517911,2.00479,3395.7,3394.9,2.00479]
[1641460518110,2.00479,3395.7,3395.6,0.71465496]
[1641460518311,2.00479,3395.7,3395.1,1.47250466]
[1641460518512,2.00479,3395.7,3395.6,0.71465496]
[1641460519512,2.00479,3395.7,3395.6,0.94464596]
[1641460519712,2.00479,3395.7,3395.6,0.71465496]
[1641460519914,2.137184,3395.7,3395.6,0.71465496]
[1641460520313,2.00479,3395.7,3395.6,0.71465496]
[1641460520512,3.00313877,3395.7,3395.6,0.71465496]
[1641460521511,3.00313877,3395.7,3395.6,0.94464596]
[1641460522114,3.00313877,3395.7,3395.6,0.71465496]
[1641460522312,3.00313877,3395.7,3395.6,0.94464596]
[1641460522517,3.00313877,3395.7,3395.6,0.71465496]
[1641460523115,3.00313877,3395.7,3395.4,0.71465496]
[1641460523316,3.00313877,3395.7,3395.5,0.229991]
[1641460523516,2.00479,3395.7,3395.5,0.229991]
[1641460524014,2.00479,3395.7,3395.4,0.71465496]
[1641460524616,2.00479,3395.7,3395.2,2.1537]
[1641460524817,2.00479,3395.7,3395.6,0.71465496]
[1641460525019,2.137184,3395.7,3395.5,1.47231387]
[1641460525218,2.137184,3395.7,3395.5,0.71465496]
[1641460525418,5.44835496,3395.7,3395.5,0.71465496]
[1641460525917,5.44835496,3395.7,3395.6,0.229991]
[1641460526317,5.44835496,3395.7,3395.5,0.71465496]
[1641460526920,4.63002246,3395.7,3395.5,0.94464596]
[1641460527418,4.63002246,3395.7,3395.5,0.71465496]
[1641460528019,4.63002246,3395.7,3395.6,0.229991]
[1641460528218,4.49762846,3395.7,3395.5,0.71465496]
[1641460528820,4.49762846,3395.7,3395.6,0.229991]
[1641460529020,4.49762846,3395.7,3395.5,0.71465496]
[1641460531023,0.132394,3395.6,3395.5,0.71465496]
[1641460531224,0.132394,3395.6,3395.5,0.94464596]
[1641460531423,0.132394,3395.6,3395.5,0.71465496]
[1641460532326,0.132394,3395.6,3395.2,0.6537]
[1641460532524,2.62523246,3395.6,3394.9,2.71944496]
[1641460532726,4.712257,3395.5,3394.9,2.00479]
[1641460532925,0.132394,3395.4,3394.9,2.00479]
[1641460533124,1.13084943,3395.4,3395.3,0.71465496]
[1641460533725,1.13084943,3395.4,3394.9,2.00479]
[1641460533924,1.13084943,3395.4,3395.3,0.71465496]
[1641460533925,0.132394,3395.4,3395.3,0.71465496]
[1641460534125,0.132394,3395.4,3394.9,2.71944496]
[1641460534126,3.44356496,3395.4,3394.9,2.71944496]
[1641460534325,3.44356496,3395.4,3395.3,0.71465496]
[1641460534926,0.132394,3395.4,3395.3,0.71465496]
[1641460535124,3.31117096,3395.5,3395.3,0.94464596]
[1641460535326,3.31117096,3395.5,3395.3,0.229991]
[1641460535524,3.31117096,3395.5,3394.9,2.71944496]
[1641460536326,0.78534504,3395.1,3394.5,0.99164008]
[1641460536525,0.78534504,3394.7,3394.2,1.32455059]
[1641460536727,0.78534504,3394.4,3394.0,1.41323882]
[1641460536927,4.713576,3394.6,3394.0,1.41323882]
[1641460537127,0.6686,3394.7,3393.7,1.98670257]
[1641460537128,4.701083,3394.3,3393.7,1.98670257]
[1641460537327,0.132394,3394.2,3393.7,1.98670257]
[1641460537527,0.132394,3394.2,3394.0,0.71465496]
[1641460537730,0.132394,3394.2,3393.7,1.98670257]
[1641460537731,4.71427,3394.1,3393.7,1.98670257]
[1641460537931,0.132394,3394.0,3393.7,1.98670257]
[1641460538628,6.70943583,3393.9,3393.6,2.00479]
[1641460538830,0.132394,3393.8,3393.6,2.00479]
[1641460539328,0.132394,3393.8,3393.7,0.71465496]
[1641460539532,0.132394,3393.8,3393.6,2.00479]
[1641460539730,0.132394,3393.8,3393.7,0.71465496]
[1641460540533,0.132394,3393.8,3393.7,0.94464596]
[1641460540731,1.99502683,3394.0,3393.7,1.73734596]
[1641460540932,1.99502683,3394.0,3393.9,3.6875934]